fUSD/lending_fUSD_20260508
["ID","MTS","AMOUNT","RATE_DAILY","PERIOD"]
[421858668,1778237446000,-300.0,0.00037887,2]
[421858692,1778237446000,-300.0,0.00037887,2]
[421858661,1778237446000,-724.49963937,0.00037887,2]
[421858665,1778237446000,-310.51454575,0.00037887,2]
[421858664,1778237446000,-300.0,0.00037887,2]
[421858663,1778237446000,-300.0,0.00037887,2]
[421858672,1778237446000,-300.0,0.00037887,2]
[421858666,1778237446000,-300.0,0.00037887,2]
[421858662,1778237446000,-300.0,0.00037887,2]
[421858657,1778237446000,-300.0,0.00037887,2]
[421858660,1778237446000,-891.53431851,0.00037887,2]
[421858659,1778237446000,-526.62631945,0.00037887,2]
[421858743,1778237447000,-300.0,0.00037887,2]
[421858740,1778237447000,-300.0,0.00037887,2]
[421858737,1778237447000,-303.1509016,0.00037887,2]
[421858736,1778237447000,-300.0,0.00037887,2]
[421858739,1778237447000,-405.22366241,0.00037887,2]
[421858734,1778237447000,-300.0,0.00037887,2]
[421858738,1778237447000,-492.08061472,0.00037887,2]
[421858742,1778237447000,-300.0,0.00037887,2]
[421858733,1778237447000,-300.0,0.00037887,2]
[421858741,1778237447000,-300.0,0.00037887,2]
[421858744,1778237447000,-724.93361989,0.00037887,2]
[421858735,1778237447000,-300.0,0.00037887,2]
[421858746,1778237447000,-300.20081793,0.00037887,2]
[421858758,1778237447000,-599.99999999,0.00037887,2]
[421858748,1778237447000,-300.0,0.00037887,2]
[421858747,1778237447000,-300.0,0.00037887,2]
[421858749,1778237447000,-300.0,0.00037887,2]
[421858754,1778237447000,-309.11524289,0.00037887,2]
[421858752,1778237447000,-300.8440627,0.00037887,2]
[421858753,1778237447000,-1145.41934578,0.00037887,2]
[421858750,1778237447000,-300.0,0.00037887,2]
[421858751,1778237447000,-739.04552228,0.00037887,2]
[421858764,1778237447000,-451.3512506,0.00037887,2]
[421858756,1778237447000,-863.09416045,0.00037887,2]
[421858766,1778237447000,-300.0,0.00037887,2]
[421858755,1778237447000,-300.0,0.00037887,2]
[421858730,1778237447000,-300.0,0.00037887,2]
[421858745,1778237447000,-300.0,0.00037887,2]
[421858732,1778237447000,-300.0,0.00037887,2]
[421858701,1778237447000,-300.0,0.00037887,2]
[421858721,1778237447000,-863.09416046,0.00037887,2]
[421858703,1778237447000,-300.0,0.00037887,2]
[421858704,1778237447000,-300.0,0.00037887,2]
[421858702,1778237447000,-300.0,0.00037887,2]
[421858706,1778237447000,-530.45437532,0.00037887,2]
[421858705,1778237447000,-300.0,0.00037887,2]
[421858716,1778237447000,-1793.64716308,0.00037887,2]
[421858707,1778237447000,-892.04454698,0.00037887,2]
[421858709,1778237447000,-300.0,0.00037887,2]
[421858715,1778237447000,-300.0,0.00037887,2]
[421858708,1778237447000,-724.93361989,0.00037887,2]
[421858717,1778237447000,-343.45478996,0.00037887,2]
[421858711,1778237447000,-300.0,0.00037887,2]
[421858710,1778237447000,-412.80313747,0.00037887,2]
[421858712,1778237447000,-300.0,0.00037887,2]
[421858713,1778237447000,-300.0,0.00037887,2]
[421858714,1778237447000,-852.88686293,0.00037887,2]
[421858718,1778237447000,-1145.4193458,0.00037887,2]
[421858719,1778237447000,-309.11524289,0.00037887,2]
[421858727,1778237447000,-300.0,0.00037887,2]
[421858728,1778237447000,-483.34199356,0.00037887,2]
[421858729,1778237447000,-300.0,0.00037887,2]
[421858723,1778237447000,-300.0,0.00037887,2]
[421858720,1778237447000,-300.0,0.00037887,2]
[421858722,1778237447000,-1806.23362856,0.00037887,2]
[421858726,1778237447000,-300.0,0.00037887,2]
[421858725,1778237447000,-300.0,0.00037887,2]
[421858724,1778237447000,-537.93966198,0.00037887,2]
[421858757,1778237447000,-1806.23362856,0.00037887,2]
[421858765,1778237447000,-300.0,0.00037887,2]
[421858731,1778237447000,-300.00000001,0.00037887,2]
[421858763,1778237447000,-300.0,0.00037887,2]
[421858798,1778237447000,-852.88686294,0.00037887,2]
[421858795,1778237447000,-300.00000001,0.00037887,2]
[421858794,1778237447000,-300.0,0.00037887,2]
[421858802,1778237447000,-1145.41934579,0.00037887,2]
[421858801,1778237447000,-300.0,0.00037887,2]
[421858796,1778237447000,-300.0,0.00037887,2]
[421858800,1778237447000,-1793.64716308,0.00037887,2]
[421858799,1778237447000,-526.03810806,0.00037887,2]
[421858797,1778237447000,-300.0,0.00037887,2]
[421858816,1778237447000,-300.0,0.00037887,2]
[421858806,1778237447000,-1411.58672911,0.00037887,2]
[421858805,1778237447000,-863.09416045,0.00037887,2]
[421858807,1778237447000,-325.17968677,0.00037887,2]
[421858808,1778237447000,-300.0,0.00037887,2]
[421858809,1778237447000,-300.0,0.00037887,2]
[421858812,1778237447000,-300.0,0.00037887,2]
[421858811,1778237447000,-463.28842574,0.00037887,2]
[421858810,1778237447000,-310.51454575,0.00037887,2]
[421858813,1778237447000,-370.10410288,0.00037887,2]
[421858815,1778237447000,-300.0,0.00037887,2]
[421858814,1778237447000,-451.3512506,0.00037887,2]
[421858821,1778237447000,-309.46065506,0.00037887,2]
[421858817,1778237447000,-300.0,0.00037887,2]
[421858822,1778237447000,-483.34199353,0.00037887,2]
[421858819,1778237447000,-300.0,0.00037887,2]
[421858818,1778237447000,-300.0,0.00037887,2]
[421858820,1778237447000,-300.0,0.00037887,2]
[421858792,1778237447000,-300.0,0.00037887,2]
[421858803,1778237447000,-309.11524289,0.00037887,2]
[421858767,1778237447000,-300.0,0.00037887,2]
[421858793,1778237447000,-600.1150213,0.00037887,2]
[421858759,1778237447000,-300.0,0.00037887,2]
[421858762,1778237447000,-463.28842574,0.00037887,2]
[421858761,1778237447000,-300.87827372,0.00037887,2]
[421858760,1778237447000,-300.0,0.00037887,2]
[421858768,1778237447000,-300.0,0.00037887,2]
[421858770,1778237447000,-309.36726269,0.00037887,2]
[421858769,1778237447000,-483.34199356,0.00037887,2]
[421858804,1778237447000,-396.13518892,0.00037887,2]
[421858777,1778237447000,-300.84008544,0.00037887,2]
[421858776,1778237447000,-300.0,0.00037887,2]
[421858771,1778237447000,-300.0,0.00037887,2]
[421858772,1778237447000,-300.0,0.00037887,2]
[421858775,1778237447000,-300.0,0.00037887,2]
[421858774,1778237447000,-1093.33377153,0.00037887,2]
[421858773,1778237447000,-300.0,0.00037887,2]
[421858780,1778237447000,-302.15410692,0.00037887,2]
[421858778,1778237447000,-597.43958152,0.00037887,2]
[421858782,1778237447000,-300.0,0.00037887,2]
[421858789,1778237447000,-309.27292036,0.00037887,2]
[421858788,1778237447000,-892.04454699,0.00037887,2]
[421858786,1778237447000,-527.09470177,0.00037887,2]
[421858784,1778237447000,-603.71874494,0.00037887,2]
[421858787,1778237447000,-1065.60457523,0.00037887,2]
[421858783,1778237447000,-300.0,0.00037887,2]
[421858781,1778237447000,-492.08061472,0.00037887,2]
[421858779,1778237447000,-300.7487372,0.00037887,2]
[421858791,1778237447000,-300.0,0.00037887,2]
[421858790,1778237447000,-724.93361989,0.00037887,2]
[421858785,1778237447000,-300.0,0.00037887,2]
[421858859,1778237448000,-300.0,0.00037887,2]
[421858874,1778237448000,-300.0,0.00037887,2]
[421858861,1778237448000,-300.0,0.00037887,2]
[421858863,1778237448000,-483.34199354,0.00037887,2]
[421858862,1778237448000,-300.71838842,0.00037887,2]
[421858864,1778237448000,-309.46065506,0.00037887,2]
[421858857,1778237448000,-300.0,0.00037887,2]
[421858860,1778237448000,-300.0,0.00037887,2]
[421858853,1778237448000,-300.0,0.00037887,2]
[421858856,1778237448000,-463.28842574,0.00037887,2]
[421858855,1778237448000,-300.0,0.00037887,2]
[421858858,1778237448000,-451.3512506,0.00037887,2]
[421858868,1778237448000,-502.40292348,0.00037887,2]
[421858892,1778237448000,-310.51454575,0.00037887,2]
[421858870,1778237448000,-300.0,0.00037887,2]
[421858871,1778237448000,-492.08061472,0.00037887,2]
[421858869,1778237448000,-300.72214661,0.00037887,2]
[421858875,1778237448000,-527.09470177,0.00037887,2]
[421858866,1778237448000,-1091.99211899,0.00037887,2]
[421858878,1778237448000,-309.27292036,0.00037887,2]
[421858872,1778237448000,-300.0,0.00037887,2]
[421858873,1778237448000,-603.71874494,0.00037887,2]
[421858877,1778237448000,-892.04454699,0.00037887,2]
[421858876,1778237448000,-1065.60457523,0.00037887,2]
[421858880,1778237448000,-300.0,0.00037887,2]
[421858890,1778237448000,-309.11524289,0.00037887,2]
[421858865,1778237448000,-361.85899322,0.00037887,2]
[421858867,1778237448000,-300.0,0.00037887,2]
[421858854,1778237448000,-310.51454575,0.00037887,2]
[421858836,1778237448000,-1065.60457523,0.00037887,2]
[421858848,1778237448000,-300.77822011,0.00037887,2]
[421858891,1778237448000,-300.0,0.00037887,2]
[421858826,1778237448000,-1093.33377153,0.00037887,2]
[421858824,1778237448000,-300.77619993,0.00037887,2]
[421858823,1778237448000,-300.0,0.00037887,2]
[421858825,1778237448000,-300.0,0.00037887,2]
[421858828,1778237448000,-300.0,0.00037887,2]
[421858827,1778237448000,-300.0,0.00037887,2]
[421858830,1778237448000,-492.08061472,0.00037887,2]
[421858840,1778237448000,-301.42398986,0.00037887,2]
[421858829,1778237448000,-300.0,0.00037887,2]
[421858832,1778237448000,-300.0,0.00037887,2]
[421858833,1778237448000,-603.71874494,0.00037887,2]
[421858838,1778237448000,-309.27292036,0.00037887,2]
[421858839,1778237448000,-727.83218226,0.00037887,2]
[421858834,1778237448000,-300.0,0.00037887,2]
[421858835,1778237448000,-527.09470177,0.00037887,2]
[421858837,1778237448000,-892.04454699,0.00037887,2]
[421858841,1778237448000,-300.0,0.00037887,2]
[421858844,1778237448000,-300.0,0.00037887,2]
[421858843,1778237448000,-300.0,0.00037887,2]
[421858845,1778237448000,-852.88686294,0.00037887,2]
[421858842,1778237448000,-300.10527973,0.00037887,2]
[421858850,1778237448000,-1145.4193458,0.00037887,2]
[421858846,1778237448000,-300.0,0.00037887,2]
[421858847,1778237448000,-1793.64716308,0.00037887,2]
[421858851,1778237448000,-309.11524289,0.00037887,2]
[421858849,1778237448000,-300.0,0.00037887,2]
[421858852,1778237448000,-1046.48917149,0.00037887,2]
[421858879,1778237448000,-301.42398986,0.00037887,2]
[421858831,1778237448000,-342.94953915,0.00037887,2]
[421858885,1778237448000,-300.0,0.00037887,2]
[421858918,1778237448000,-300.0,0.00037887,2]
[421858909,1778237448000,-1065.60457523,0.00037887,2]
[421858920,1778237448000,-343.56112299,0.00037887,2]
[421858921,1778237448000,-300.0,0.00037887,2]
[421858932,1778237448000,-528.2967801,0.00037887,2]
[421858929,1778237448000,-309.46065506,0.00037887,2]
[421858922,1778237448000,-1145.77098593,0.00037887,2]
[421858933,1778237448000,-1065.60457523,0.00037887,2]
[421858926,1778237448000,-463.28842574,0.00037887,2]
[421858924,1778237448000,-310.51454575,0.00037887,2]
[421858931,1778237448000,-603.71874494,0.00037887,2]
[421858923,1778237448000,-309.11524289,0.00037887,2]
[421858934,1778237448000,-309.87891869,0.00037887,2]
[421858913,1778237448000,-300.0,0.00037887,2]
[421858925,1778237448000,-300.0,0.00037887,2]
[421858927,1778237448000,-300.0,0.00037887,2]
[421858935,1778237448000,-301.42398986,0.00037887,2]
[421858943,1778237448000,-1148.84144088,0.00037887,2]
[421858938,1778237448000,-852.88686293,0.00037887,2]
[421858937,1778237448000,-300.0,0.00037887,2]
[421858946,1778237448000,-300.0,0.00037887,2]
[421858945,1778237448000,-310.51454575,0.00037887,2]
[421858940,1778237448000,-1793.64716308,0.00037887,2]
[421858939,1778237448000,-300.0,0.00037887,2]
[421858944,1778237448000,-310.03346842,0.00037887,2]
[421858941,1778237448000,-343.56112299,0.00037887,2]
[421858942,1778237448000,-300.0,0.00037887,2]
[421858884,1778237448000,-852.88686294,0.00037887,2]
[421858930,1778237448000,-300.8782727,0.00037887,2]
[421858916,1778237448000,-301.04713147,0.00037887,2]
[421858928,1778237448000,-483.34199354,0.00037887,2]
[421858912,1778237448000,-301.42398986,0.00037887,2]
[421858883,1778237448000,-300.0,0.00037887,2]
[421858914,1778237448000,-401.39214407,0.00037887,2]
[421858889,1778237448000,-1145.41934578,0.00037887,2]
[421858881,1778237448000,-300.10527974,0.00037887,2]
[421858888,1778237448000,-300.0,0.00037887,2]
[421858882,1778237448000,-300.0,0.00037887,2]
[421858886,1778237448000,-1793.64716308,0.00037887,2]
[421858887,1778237448000,-343.56112299,0.00037887,2]
[421858893,1778237448000,-300.0,0.00037887,2]
[421858895,1778237448000,-430.21959615,0.00037887,2]
[421858897,1778237448000,-301.11222577,0.00037887,2]
[421858896,1778237448000,-451.3512506,0.00037887,2]
[421858899,1778237448000,-300.0,0.00037887,2]
[421858900,1778237448000,-483.34199354,0.00037887,2]
[421858898,1778237448000,-301.12522993,0.00037887,2]
[421858894,1778237448000,-463.28842574,0.00037887,2]
[421858911,1778237448000,-309.27292036,0.00037887,2]
[421858917,1778237448000,-852.88686295,0.00037887,2]
[421858915,1778237448000,-300.0,0.00037887,2]
[421858910,1778237448000,-892.04454699,0.00037887,2]
[421858907,1778237448000,-300.0,0.00037887,2]
[421858906,1778237448000,-603.71874494,0.00037887,2]
[421858908,1778237448000,-527.09470177,0.00037887,2]
[421858902,1778237448000,-490.44419615,0.00037887,2]
[421858901,1778237448000,-309.46065506,0.00037887,2]
[421858903,1778237448000,-543.20254789,0.00037887,2]
[421858905,1778237448000,-300.0,0.00037887,2]
[421858904,1778237448000,-493.21465636,0.00037887,2]
[421858919,1778237448000,-1793.64716308,0.00037887,2]
[421858984,1778237449000,-1793.64716308,0.00037887,2]
[421858979,1778237449000,-300.0,0.00037887,2]
[421858977,1778237449000,-301.42398986,0.00037887,2]
[421858988,1778237449000,-300.0,0.00037887,2]
[421858981,1778237449000,-855.38774298,0.00037887,2]
[421858986,1778237449000,-343.56112299,0.00037887,2]
[421858998,1778237449000,-894.94604263,0.00037887,2]
[421858992,1778237449000,-528.97083609,0.00037887,2]
[421858996,1778237449000,-300.0,0.00037887,2]
[421858994,1778237449000,-309.46065506,0.00037887,2]
[421859003,1778237449000,-344.15898166,0.00037887,2]
[421859001,1778237449000,-1793.64716308,0.00037887,2]
[421858970,1778237449000,-528.97083609,0.00037887,2]
[421858990,1778237449000,-461.30773282,0.00037887,2]
[421858972,1778237449000,-309.46065506,0.00037887,2]
[421858949,1778237449000,-528.97083609,0.00037887,2]
[421858961,1778237449000,-1793.64716308,0.00037887,2]
[421859014,1778237449000,-1793.64716309,0.00037887,2]
[421858948,1778237449000,-463.28842574,0.00037887,2]
[421858951,1778237449000,-484.83006023,0.00037887,2]
[421858950,1778237449000,-450.11467874,0.00037887,2]
[421858952,1778237449000,-309.46065506,0.00037887,2]
[421858964,1778237449000,-310.89840466,0.00037887,2]
[421858962,1778237449000,-343.56112299,0.00037887,2]
[421858954,1778237449000,-604.76127379,0.00037887,2]
[421858966,1778237449000,-300.0,0.00037887,2]
[421858953,1778237449000,-443.41348483,0.00037887,2]
[421858955,1778237449000,-732.27828781,0.00037887,2]
[421858957,1778237449000,-300.0,0.00037887,2]
[421858956,1778237449000,-301.42398986,0.00037887,2]
[421858959,1778237449000,-300.85242038,0.00037887,2]
[421858958,1778237449000,-852.88686295,0.00037887,2]
[421858968,1778237449000,-463.28842574,0.00037887,2]
[421859016,1778237449000,-528.97083609,0.00037887,2]
[421858975,1778237449000,-892.3139479,0.00037887,2]
[421859005,1778237449000,-528.97083609,0.00037887,2]
[421859054,1778237449000,-187.5,0.00037895,120]
[421859056,1778237449000,-150.2050717,0.00037895,120]
[421859059,1778237449000,-261.2811879,0.00037895,120]
[421859064,1778237449000,-221.12931934,0.000379,2]
[421859063,1778237449000,-6870.53774677,0.000379,2]
[421859061,1778237449000,-178.02659445,0.000379,2]
[421859066,1778237449000,-516.16268269,0.000379,2]
[421859069,1778237449000,-157.45440269,0.000379,2]
[421859071,1778237449000,-170.0,0.00037973,30]
[421859073,1778237449000,-182.08930529,0.00038,31]
[421859075,1778237449000,-500.0,0.00038,120]
[421859076,1778237449000,-1116471.48307574,0.00038,120]
[421859104,1778237449000,-2724.38583911,0.00038,120]
[421859107,1778237449000,-2137896.00585061,0.00038,120]
[421859018,1778237449000,-404.13802103,0.00037887,2]
[421859050,1778237449000,-168.2968331,0.00037895,120]
[421859052,1778237449000,-262.7845241,0.00037895,120]
[421859102,1778237449000,-1551.0,0.00024203,10]
[421859046,1778237449000,-607.76459197,0.00037887,2]
[421859048,1778237449000,-192.9813567,0.00037895,120]
[421859010,1778237449000,-300.0,0.00037887,2]
[421859007,1778237449000,-515.66842612,0.00037887,2]
[421859031,1778237449000,-528.97083609,0.00037887,2]
[421859023,1778237449000,-528.97083609,0.00037887,2]
[421859020,1778237449000,-399.39738795,0.00037887,2]
[421859025,1778237449000,-399.39738795,0.00037887,2]
[421859012,1778237449000,-399.39738795,0.00037887,2]
[421859033,1778237449000,-399.39738795,0.00037887,2]
[421859035,1778237449000,-528.97083609,0.00037887,2]
[421859027,1778237449000,-528.97083609,0.00037887,2]
[421859029,1778237449000,-399.39738795,0.00037887,2]
[421859044,1778237449000,-363.66476074,0.00037887,2]
[421859042,1778237449000,-527.48530608,0.00037887,2]
[421859039,1778237449000,-399.39738795,0.00037887,2]
[421859037,1778237449000,-300.0,0.00037887,2]
[421859207,1778237450000,-155.84,0.00025205,7]
[421859197,1778237450000,-150.0,0.00014999,2]
[421859144,1778237450000,-163.26,0.0002873,7]
[421859148,1778237450000,-3111.0,0.0003419,30]
[421859140,1778237450000,-165.20343421,0.00018807,2]
[421859142,1778237450000,-163.26,0.0002863,2]
[421859146,1778237450000,-163.26,0.0002883,30]
[421859210,1778237450000,-155.84,0.00025753,30]
[421859151,1778237450000,-1595574.0165655,0.00038,120]
[421859215,1778237450000,-163.26,0.00028931,2]
[421859199,1778237450000,-165.20343421,0.0002076,2]
[421859217,1778237450000,-163.26,0.00029031,7]
[421859201,1778237450000,-17.76223661,0.00024658,2]
[421859205,1778237450000,-138.07776339,0.00024658,2]
[421859230,1778237450000,-199.07,0.00037671,120]
[421859220,1778237450000,-163.26,0.00029132,30]
[421859234,1778237450000,-577.20896445,0.00037842,10]
[421859232,1778237450000,-418.33787497,0.00037842,10]
[421859227,1778237450000,-168.22666534,0.00035616,7]
[421859225,1778237450000,-500.0,0.00035616,7]
[421859222,1778237450000,-163.29,0.00029232,2]
[421859212,1778237450000,-155.84,0.00026301,2]
[421859647,1778237462000,2500.0,0.00026493,120]
[421859646,1778237462000,2500.0,0.00028148,120]
[421859665,1778238308000,-150.0,0.00013488,2]
[421859666,1778238308000,-151.74412025,0.00013488,2]
[421859667,1778238308000,-66.5254571,0.00013488,2]
[421859676,1778238333000,2837.01845474,0.00030136,120]
[421859677,1778238335000,500.0,0.00027433,120]
[421859679,1778238559000,-83.4745429,0.00013488,2]
[421859678,1778238559000,-300.0,0.00013487,2]
[421859681,1778238559000,-150.0,0.00013488,2]
[421859685,1778238559000,-149.02165867,0.00013488,2]
[421859680,1778238559000,-150.0,0.00013488,2]
[421859683,1778238559000,-150.0,0.00013488,2]
[421859684,1778238559000,-278.41425844,0.00013488,2]
[421859682,1778238559000,-150.0,0.00013488,2]
[421859687,1778238572000,500.0,0.00028899,120]
[421859686,1778238572000,500.0,0.00027433,120]
[421859696,1778238631000,-133.12005867,0.00014885,2]
[421859695,1778238631000,-348.9016,0.00014885,2]
[421859693,1778238631000,-150.0,0.00013488,2]
[421859694,1778238631000,-150.0,0.00013488,2]
[421859692,1778238631000,-0.97834133,0.00013488,2]
[421859732,1778238632000,-500.0,0.00014999,2]
[421859733,1778238632000,-500.0,0.00014999,2]
[421859726,1778238632000,-500.0,0.00014999,2]
[421859735,1778238632000,-500.0,0.00014999,2]
[421859729,1778238632000,-500.0,0.00014999,2]
[421859730,1778238632000,-500.0,0.00014999,2]
[421859728,1778238632000,-500.0,0.00014999,2]
[421859734,1778238632000,-500.0,0.00014999,2]
[421859731,1778238632000,-500.0,0.00014999,2]
[421859737,1778238632000,-500.0,0.00014999,2]
[421859738,1778238632000,-500.0,0.00014999,2]
[421859736,1778238632000,-500.0,0.00014999,2]
[421859741,1778238632000,-500.0,0.00014999,2]
[421859740,1778238632000,-500.0,0.00014999,2]
[421859747,1778238632000,-500.0,0.00014999,2]
[421859743,1778238632000,-500.0,0.00014999,2]
[421859745,1778238632000,-500.0,0.00014999,2]
[421859742,1778238632000,-500.0,0.00014999,2]
[421859744,1778238632000,-500.0,0.00014999,2]
[421859746,1778238632000,-500.0,0.00014999,2]
[421859748,1778238632000,-500.0,0.00014999,2]
[421859739,1778238632000,-500.0,0.00014999,2]
[421859724,1778238632000,-500.0,0.00014999,2]
[421859714,1778238632000,-500.0,0.00014999,2]
[421859719,1778238632000,-500.0,0.00014999,2]
[421859699,1778238632000,-1027.19826376,0.000149,2]
[421859697,1778238632000,-1145.59461968,0.00014885,2]
[421859698,1778238632000,-726.12012999,0.000149,2]
[421859700,1778238632000,-252.97961738,0.000149,2]
[421859701,1778238632000,-2278.12530234,0.000149,2]
[421859708,1778238632000,-500.0,0.00014999,2]
[421859705,1778238632000,-878.76964999,0.0001495,2]
[421859707,1778238632000,-500.0,0.00014999,2]
[421859702,1778238632000,-10055.49530847,0.000149,2]
[421859703,1778238632000,-172.05422757,0.000149,2]
[421859718,1778238632000,-500.0,0.00014999,2]
[421859706,1778238632000,-150.0,0.00014986,2]
[421859710,1778238632000,-482.31490543,0.00014999,2]
[421859722,1778238632000,-500.0,0.00014999,2]
[421859720,1778238632000,-500.0,0.00014999,2]
[421859711,1778238632000,-500.0,0.00014999,2]
[421859709,1778238632000,-500.0,0.00014999,2]
[421859713,1778238632000,-500.0,0.00014999,2]
[421859712,1778238632000,-500.0,0.00014999,2]
[421859715,1778238632000,-500.0,0.00014999,2]
[421859717,1778238632000,-500.0,0.00014999,2]
[421859716,1778238632000,-500.0,0.00014999,2]
[421859704,1778238632000,-10797.1096812,0.000149,2]
[421859749,1778238632000,-500.0,0.00014999,2]
[421859774,1778238632000,-500.0,0.00014999,2]
[421859754,1778238632000,-500.0,0.00014999,2]
[421859779,1778238632000,-500.0,0.00014999,2]
[421859782,1778238632000,-500.0,0.00014999,2]
[421859778,1778238632000,-500.0,0.00014999,2]
[421859776,1778238632000,-500.0,0.00014999,2]
[421859794,1778238632000,-634.15043787,0.00014999,2]
[421859795,1778238632000,-500.0,0.00014999,2]
[421859787,1778238632000,-500.0,0.00014999,2]
[421859786,1778238632000,-500.0,0.00014999,2]
[421859789,1778238632000,-212.74462178,0.00014999,2]
[421859785,1778238632000,-500.0,0.00014999,2]
[421859783,1778238632000,-500.0,0.00014999,2]
[421859788,1778238632000,-500.0,0.00014999,2]
[421859793,1778238632000,-500.0,0.00014999,2]
[421859790,1778238632000,-500.0,0.00014999,2]
[421859792,1778238632000,-500.0,0.00014999,2]
[421859791,1778238632000,-500.0,0.00014999,2]
[421859799,1778238632000,-1179.26200098,0.00015,2]
[421859796,1778238632000,-500.0,0.00014999,2]
[421859797,1778238632000,-31993.39538932,0.00015,2]
[421859798,1778238632000,-22624.04851468,0.00015,2]
[421859750,1778238632000,-500.0,0.00014999,2]
[421859775,1778238632000,-500.0,0.00014999,2]
[421859781,1778238632000,-500.0,0.00014999,2]
[421859784,1778238632000,-500.0,0.00014999,2]
[421859777,1778238632000,-500.0,0.00014999,2]
[421859752,1778238632000,-500.0,0.00014999,2]
[421859751,1778238632000,-500.0,0.00014999,2]
[421859753,1778238632000,-500.0,0.00014999,2]
[421859755,1778238632000,-500.0,0.00014999,2]
[421859757,1778238632000,-500.0,0.00014999,2]
[421859780,1778238632000,-500.0,0.00014999,2]
[421859759,1778238632000,-500.0,0.00014999,2]
[421859769,1778238632000,-500.0,0.00014999,2]
[421859758,1778238632000,-500.0,0.00014999,2]
[421859760,1778238632000,-500.0,0.00014999,2]
[421859763,1778238632000,-500.0,0.00014999,2]
[421859756,1778238632000,-500.0,0.00014999,2]
[421859764,1778238632000,-500.0,0.00014999,2]
[421859761,1778238632000,-500.0,0.00014999,2]
[421859765,1778238632000,-500.0,0.00014999,2]
[421859768,1778238632000,-500.0,0.00014999,2]
[421859767,1778238632000,-331.03658789,0.00014999,2]
[421859771,1778238632000,-500.0,0.00014999,2]
[421859766,1778238632000,-500.0,0.00014999,2]
[421859773,1778238632000,-500.0,0.00014999,2]
[421859772,1778238632000,-500.0,0.00014999,2]
[421859770,1778238632000,-500.0,0.00014999,2]
[421859762,1778238632000,-500.0,0.00014999,2]
[421859808,1778238638000,-26334.09321813,0.00015,2]
[421859810,1778238638000,-822.22,0.00015,2]
[421859809,1778238638000,-380.52932165,0.00015,2]
[421859811,1778238638000,-277.41999,0.00015,2]
[421859812,1778238638000,-2918.68033196,0.00015,2]
[421859824,1778238641000,-400.96,0.00015,2]
[421859822,1778238641000,-1143.80000001,0.00015,2]
[421859816,1778238641000,-1265094.96351433,0.00015,2]
[421859867,1778238643000,-131443.09829069,0.00015,2]
[421859866,1778238643000,-1986.42726982,0.00015,2]
[421859865,1778238643000,-810.71,0.00015,2]
[421859864,1778238643000,-35067.823,0.00015,2]
[421859873,1778238646000,-5300.62099022,0.00015,2]
[421859872,1778238646000,-1602.60626701,0.00015,2]
[421859876,1778238646000,-3222.8993,0.00015,2]
[421859877,1778238646000,-90506.31054708,0.00015,2]
[421859875,1778238646000,-6422.64,0.00015,2]
[421859874,1778238646000,-13127.996,0.00015,2]
[421859919,1778239075000,161.82,0.00030136,120]
[421859922,1778239485000,169.15604238,0.0001,2]
[421859933,1778239774000,-250.0,0.00012341,2]
[421859931,1778239774000,-150.0,0.00011816,2]
[421859932,1778239774000,-150.0,0.00011933,2]
[421859930,1778239774000,-158.26,0.00011219,2]
[421859928,1778239774000,-191.9060498,0.00011219,2]
[421859929,1778239774000,-346.8400236,0.00011219,2]
[421859974,1778239832000,-500.0,0.00014624,2]
[421859981,1778239832000,-500.0,0.00014624,2]
[421859971,1778239832000,-500.0,0.00014624,2]